fUSD/lending_fUSD_20251006
["ID","MTS","AMOUNT","RATE_DAILY","PERIOD"]
[389655904,1759769469196,-1500.0,0.000234,28]
[389655905,1759769469206,-1500.0,0.000234,28]
[389655906,1759769469217,-1500.0,0.000234,28]
[389655907,1759769469226,-1500.0,0.000234,28]
[389655908,1759769469235,-1500.0,0.000234,28]
[389655909,1759769469244,-1500.0,0.000234,28]
[389655910,1759769469254,-760.40394,0.000234,28]
[389655911,1759769469264,-200.0,0.000235,2]
[389655912,1759769469273,-44837.07,0.000235,2]
[389655913,1759769469283,-3890.75622376,0.000235,5]
[389655914,1759769469293,-1519.76186376,0.000235,2]
[389655915,1759769469303,-150.0,0.000235,30]
[389655916,1759769469313,-207.0,0.0002353,2]
[389655917,1759769469323,-1041.27985465,0.00023541,2]
[389655918,1759769469332,-579.0,0.00023562,2]
[389655919,1759769469342,-1815.0,0.00023562,2]
[389655920,1759769469353,-833.0,0.00023562,2]
[389655921,1759769469363,-487.0,0.00023562,2]
[389655922,1759769469372,-159.87407172,0.00023562,2]
[389655923,1759769469382,-201.93286099,0.00023562,2]
[389655924,1759769469391,-158.3037798,0.00023567,2]
[389655925,1759769469403,-152.0,0.00023582,5]
[389655926,1759769469412,-150.0,0.00023649,120]
[389655927,1759769469422,-550.0,0.00023664,2]
[389655928,1759769469431,-150.0,0.00023693,120]
[389655929,1759769469441,-1519.76186376,0.000237,2]
[389655930,1759769469508,-600.0,0.00023754,2]
[389655931,1759769469525,-162.21,0.00023765,2]
[389655932,1759769469534,-150.0,0.00023765,2]
[389655933,1759769469543,-1041.27985465,0.00023776,2]
[389655934,1759769469552,-3957.5,0.000238,2]
[389655935,1759769469562,-2213.69,0.00023836,2]
[389655936,1759769469571,-579.0,0.00023836,2]
[389655937,1759769469580,-1815.0,0.00023836,2]
[389655938,1759769469590,-833.0,0.00023836,2]
[389655939,1759769469599,-487.0,0.00023836,2]
[389655940,1759769469608,-6000.0,0.00023874,10]
[389655941,1759769469617,-155.0,0.00023879,3]
[389655942,1759769469626,-1519.76186376,0.000239,2]
[389655943,1759769469635,-150.0,0.00023903,2]
[389655944,1759769469647,-1390.0,0.00023957,2]
[389655945,1759769469657,-50782.54041853,0.00024,2]
[389655946,1759769469666,-1005.44563618,0.00024,2]
[389655947,1759769469676,-769.29578757,0.00024,2]
[389655948,1759769469688,-3600.0,0.00024,2]
[389655949,1759769469699,-383.94958764,0.00024,2]
[389655950,1759769469709,-44837.07,0.00024,2]
[389655951,1759769469719,-500.0,0.00024,60]
[389655952,1759769469728,-13200.0,0.00024,4]
[389655953,1759769469738,-3012.24515516,0.00024,30]
[389655954,1759769469748,-3600.0,0.00024,4]
[389655955,1759769469759,-68273.9928898,0.00024,2]
[389655956,1759769469768,-460.10827914,0.00024,2]
[389655957,1759769469778,-161.0,0.00024,7]
[389655958,1759769469787,-1001.0,0.00024,2]
[389655959,1759769469797,-164.0,0.00024,7]
[389655960,1759769469806,-1414.57382,0.00024,2]
[389655961,1759769469816,-1041.27985465,0.0002401,2]
[389655962,1759769469825,-561.28100168,0.0002407,2]
[389655963,1759769469835,-7366.67,0.000241,7]
[389655964,1759769469844,-204142.74,0.000241,7]
[389655965,1759769469854,-579.0,0.0002411,2]
[389655966,1759769469864,-1815.0,0.0002411,2]
[389655967,1759769469875,-833.0,0.0002411,2]
[389655968,1759769469885,-487.0,0.0002411,2]
[389655969,1759769469894,-1100.0,0.0002411,2]
[389655970,1759769469904,-209.40437684,0.0002411,2]
[389655971,1759769469914,-415.51108706,0.0002421,2]
[389655972,1759769469924,-3640.39689317,0.0002421,2]
[389655973,1759769469934,-650.0,0.00024212,2]
[389655974,1759769469944,-600.0,0.00024302,2]
[389655975,1759769469954,-579.0,0.00024384,2]
[389655976,1759769469964,-1815.0,0.00024384,2]
[389655977,1759769469974,-833.0,0.00024384,2]
[389655978,1759769469984,-487.0,0.00024384,2]
[389655979,1759769469994,-177.89923269,0.000244,2]
[389655980,1759769470003,-1090.0,0.00024412,2]
[389655981,1759769470013,-161.0,0.00024424,7]
[389655982,1759769470023,-150.0,0.00024451,2]
[389655983,1759769470032,-44837.07,0.000245,2]
[389655984,1759769470042,-158.3037798,0.0002451,2]
[389655985,1759769470051,-161.21520105,0.0002455,15]
[389655986,1759769470061,-150.0,0.00024639,2]
[389655987,1759769470070,-150.0,0.00024639,2]
[389655988,1759769470080,-150.0,0.00024639,2]
[389655989,1759769470090,-588.34155325,0.0002465,2]
[389655990,1759769470099,-164.69966568,0.0002465,2]
[389655991,1759769470109,-3473.2,0.00024657,2]
[389655992,1759769470119,-3473.2,0.00024657,2]
[389655993,1759769470128,-3473.2,0.00024657,2]
[389655994,1759769470138,-3473.2,0.00024657,2]
[389655995,1759769470148,-3473.2,0.00024657,2]
[389655996,1759769470158,-3473.2,0.00024657,2]
[389655997,1759769470167,-3473.2,0.00024657,2]
[389655998,1759769470176,-3473.2,0.00024657,2]
[389655999,1759769470186,-3473.2,0.00024657,2]
[389656000,1759769470197,-3473.2,0.00024657,2]
[389656001,1759769470207,-3473.2,0.00024657,2]
[389656002,1759769470216,-3473.2,0.00024657,2]
[389656003,1759769470225,-3473.2,0.00024657,2]
[389656004,1759769470235,-3473.2,0.00024657,2]
[389656005,1759769470245,-3473.2,0.00024657,2]
[389656006,1759769470255,-3473.2,0.00024657,2]
[389656007,1759769470264,-3473.2,0.00024657,2]
[389656008,1759769470273,-3473.2,0.00024657,2]
[389656009,1759769470283,-3473.2,0.00024657,2]
[389656010,1759769470293,-3473.2,0.00024657,2]
[389656011,1759769470303,-3473.2,0.00024657,2]
[389656012,1759769470313,-3473.2,0.00024657,2]
[389656013,1759769470323,-3473.2,0.00024657,2]
[389656014,1759769470332,-3473.23,0.00024657,2]
[389656015,1759769470342,-300.0,0.00024657,2]
[389656016,1759769470351,-300.0,0.00024657,2]
[389656017,1759769470360,-300.0,0.00024657,2]
[389656018,1759769470370,-300.0,0.00024657,2]
[389656019,1759769470379,-300.0,0.00024657,2]
[389656020,1759769470389,-300.0,0.00024657,2]
[389656021,1759769470399,-300.0,0.00024657,2]
[389656022,1759769470409,-300.0,0.00024657,2]
[389656023,1759769470419,-300.0,0.00024657,2]
[389656024,1759769470428,-300.0,0.00024657,2]
[389656025,1759769470439,-300.0,0.00024657,2]
[389656026,1759769470449,-300.0,0.00024657,2]
[389656027,1759769470458,-300.0,0.00024657,2]
[389656028,1759769470467,-300.0,0.00024657,2]
[389656029,1759769470477,-300.0,0.00024657,2]
[389656030,1759769470486,-300.0,0.00024657,2]
[389656031,1759769470496,-300.0,0.00024657,2]
[389656032,1759769470505,-300.0,0.00024657,2]
[389656033,1759769470515,-300.0,0.00024657,2]
[389656034,1759769470524,-300.0,0.00024657,2]
[389656035,1759769470534,-300.0,0.00024657,2]
[389656036,1759769470543,-300.0,0.00024657,2]
[389656037,1759769470554,-300.0,0.00024657,2]
[389656038,1759769470563,-251.08535301,0.00024657,2]
[389656039,1759769470573,-1000.0,0.00024658,90]
[389656040,1759769470583,-1000.0,0.00024658,2]
[389656041,1759769470593,-329.376984,0.00024658,7]
[389656042,1759769470602,-329.376984,0.00024658,7]
[389656043,1759769470612,-329.376984,0.00024658,7]
[389656044,1759769470622,-329.376984,0.00024658,7]
[389656045,1759769470632,-329.376984,0.00024658,7]
[389656046,1759769470641,-329.376984,0.00024658,7]
[389656047,1759769470906,-329.376984,0.00024658,7]
[389656048,1759769470918,-329.376984,0.00024658,7]
[389656049,1759769470928,-329.376984,0.00024658,7]
[389656050,1759769470938,-329.376984,0.00024658,7]
[389656051,1759769470947,-329.376984,0.00024658,7]
[389656052,1759769470957,-329.376984,0.00024658,7]
[389656053,1759769470967,-329.376984,0.00024658,7]
[389656054,1759769470978,-329.376984,0.00024658,7]
[389656055,1759769470987,-329.376984,0.00024658,7]
[389656056,1759769470997,-329.376984,0.00024658,7]
[389656057,1759769471007,-329.376984,0.00024658,7]
[389656058,1759769471017,-329.376984,0.00024658,7]
[389656059,1759769471026,-329.376984,0.00024658,7]
[389656060,1759769471036,-329.376983,0.00024658,7]
[389656061,1759769471046,-151.0,0.00024658,7]
[389656062,1759769471056,-151.0,0.00024658,7]
[389656063,1759769471065,-245.0,0.00024658,7]
[389656064,1759769471075,-373.829878,0.00024658,7]
[389656065,1759769471085,-373.829878,0.00024658,7]
[389656066,1759769471094,-373.829878,0.00024658,7]
[389656067,1759769471104,-373.829878,0.00024658,7]
[389656068,1759769471113,-373.829878,0.00024658,7]
[389656069,1759769471123,-373.829878,0.00024658,7]
[389656070,1759769471133,-373.829878,0.00024658,7]
[389656071,1759769471143,-373.829878,0.00024658,7]
[389656072,1759769471155,-373.829878,0.00024658,7]
[389656073,1759769471165,-373.829878,0.00024658,7]
[389656074,1759769471175,-373.829878,0.00024658,7]
[389656075,1759769471184,-373.829878,0.00024658,7]
[389656076,1759769471193,-373.829878,0.00024658,7]
[389656077,1759769471203,-373.829878,0.00024658,7]
[389656078,1759769471213,-373.829878,0.00024658,7]
[389656079,1759769471222,-373.829878,0.00024658,7]
[389656080,1759769471232,-373.829878,0.00024658,7]
[389656081,1759769471241,-373.829878,0.00024658,7]
[389656082,1759769471250,-373.829878,0.00024658,7]
[389656083,1759769471260,-373.829872,0.00024658,7]
[389656084,1759769471269,-579.0,0.00024658,2]
[389656085,1759769471279,-1815.0,0.00024658,2]
[389656086,1759769471289,-833.0,0.00024658,2]
[389656087,1759769471299,-487.0,0.00024658,2]
[389656088,1759769471308,-552.0,0.00024658,2]
[389656089,1759769471318,-150.0,0.00024658,2]
[389656090,1759769471328,-217.15233878,0.00024658,2]
[389656091,1759769471337,-3957.5,0.000247,2]
[389656092,1759769471346,-2000.0,0.000247,2]
[389656093,1759769471357,-203.0,0.0002472,2]
[389656094,1759769471366,-562.65044067,0.0002476,2]
[389656095,1759769471376,-1000.0,0.00024773,4]
[389656096,1759769471386,-2000.0000001,0.0002479,30]
[389656097,1759769471396,-164.3289272,0.000248,30]
[389656098,1759769471405,-7366.67,0.000248,7]
[389656099,1759769471415,-204142.74,0.000248,7]
[389656100,1759769471426,-504897.60851453,0.000248,2]
[389656101,1759769471435,-612857.780912,0.000248,3]
[389656102,1759769471444,-188.23,0.000248,4]
[389656103,1759769471454,-7561.74417302,0.00024825,2]
[389656104,1759769471464,-600.0,0.0002485,2]
[389656105,1759769471473,-154.00653491,0.00024873,2]
[389656106,1759769471483,-4173.28601228,0.0002488,120]
[389656107,1759769471492,-26218.24421885,0.000249,2]
[389656108,1759769471501,-10185.34055574,0.000249,2]
[389656109,1759769471511,-600.0,0.000249,9]
[389656110,1759769471520,-605914.467609,0.000249,3]
[389656111,1759769471530,-216.0,0.0002493,30]
[389656112,1759769471539,-579.0,0.00024932,2]
[389656113,1759769471549,-1815.0,0.00024932,2]
[389656114,1759769471559,-833.0,0.00024932,2]
[389656115,1759769471568,-487.0,0.00024932,2]
[389656116,1759769471579,-552.0,0.00024932,2]
[389656117,1759769471590,-222.07090506,0.00024932,2]
[389656118,1759769471599,-1390.0,0.00024935,2]
[389656119,1759769471608,-150.0,0.00024998,2]
[389656120,1759769471618,-1000.0,0.00024999,7]
[389656121,1759769471628,-25090.84020824,0.00025,2]
[389656122,1759769471638,-1046.34444597,0.00025,2]
[389656123,1759769471647,-164.46108742,0.00025,2]
[389656124,1759769471657,-2345.40661976,0.00025,2]
[389656125,1759769471666,-503.93,0.00025,2]
[389656126,1759769471675,-500.0,0.00025,2]
[389656127,1759769471685,-500.0,0.00025,2]
[389656128,1759769471696,-500.0,0.00025,2]
[389656129,1759769471706,-900.0,0.00025,2]
[389656130,1759769471716,-1000.0,0.00025,60]
[389656131,1759769471727,-507.26050614,0.00025,30]
[389656132,1759769471736,-1086.27166302,0.00025,60]
[389656133,1759769471745,-598.63173604,0.00025,2]
[389656134,1759769471754,-1289.08993267,0.00025,4]
[389656135,1759769471765,-204.05715971,0.00025,2]
[389656136,1759769471776,-1755.01088476,0.00025,2]
[389656137,1759769471786,-423.90064659,0.00025,2]
[389656138,1759769471795,-360.0,0.00025,2]
[389656139,1759769471804,-3762.27044248,0.00025,2]
[389656140,1759769471814,-1111.86144457,0.00025,60]
[389656141,1759769471824,-2992.54297489,0.00025,2]
[389656142,1759769471834,-3179.40154919,0.00025,2]
[389656143,1759769471844,-28000.0,0.00025,7]
[389656144,1759769471854,-5000.0,0.00025,5]
[389656145,1759769471864,-153.73441367,0.00025,32]
[389656146,1759769471873,-101706.4746799,0.00025,12]
[389656147,1759769471883,-4000.0,0.00025,2]
[389656148,1759769471892,-5000.0,0.00025,90]
[389656149,1759769471903,-5000.0,0.00025,60]
[389656150,1759769471912,-5543.0,0.00025,60]
[389656151,1759769471921,-5000.0,0.00025,90]
[389656152,1759769471932,-30557.86827728,0.00025,2]
[389656153,1759769471942,-11864.0,0.00025,5]
[389656154,1759769471952,-3600.0,0.00025,5]
[389656155,1759769471961,-6214.0,0.00025,30]
[389656156,1759769471971,-33800.0,0.00025,15]
[389656157,1759769471980,-160.0,0.00025,3]
[389656158,1759769471989,-3603.73,0.00025,7]
[389656159,1759769471998,-23029.76,0.00025,7]
[389656160,1759769472007,-252574.02430597,0.00025,25]
[389656161,1759769472016,-200.0,0.00025,120]
[389656162,1759769472026,-202.0,0.00025,2]
[389656163,1759769472035,-8415.87,0.00025,30]
[389656164,1759769472044,-50373.30410839,0.00025,7]
[389656165,1759769472054,-150.0,0.00025,2]
[389656166,1759769472063,-150.0,0.00025,2]
[389656167,1759769472074,-150.0,0.00025,2]
[389656168,1759769472083,-150.0,0.00025,2]
[389656169,1759769472093,-150.0,0.00025,2]
[389656170,1759769472102,-150.0,0.00025,2]
[389656171,1759769472112,-150.0,0.00025,2]
[389656172,1759769472122,-150.0,0.00025,2]
[389656173,1759769472131,-150.0,0.00025,2]
[389656174,1759769472140,-150.0,0.00025,2]
[389656175,1759769472151,-150.0,0.00025,2]
[389656176,1759769472161,-150.0,0.00025,2]
[389656177,1759769472171,-250.8,0.00025,2]
[389656178,1759769472180,-2018.23027636,0.00025,3]
[389656179,1759769472189,-30000.0,0.00025,2]
[389656180,1759769472199,-30000.0,0.00025,2]
[389656181,1759769472210,-30000.0,0.00025,2]
[389656182,1759769472220,-30000.0,0.00025,2]
[389656183,1759769472230,-3994.35,0.00025,7]
[389656184,1759769472239,-370.68887098,0.00025,3]
[389656185,1759769472249,-450.0,0.00025,2]
[389656186,1759769472258,-457.0,0.00025,2]
[389656187,1759769472268,-164.0,0.00025,7]
[389656188,1759769472277,-1692.49,0.00025,2]
[389656189,1759769472286,-1001.0,0.00025,2]
[389656190,1759769472296,-15000.0,0.0002501,2]
[389656191,1759769472306,-2770.2,0.000252,30]
[389656192,1759769472315,-579.0,0.00025205,2]
[389656193,1759769472326,-1815.0,0.00025205,2]
[389656194,1759769472336,-833.0,0.00025205,2]
[389656195,1759769472346,-487.0,0.00025205,2]
[389656196,1759769472355,-552.0,0.00025206,2]
[389656197,1759769472365,-225.18697532,0.00025206,2]
[389656198,1759769472374,-161.0,0.00025358,7]
[389656199,1759769472383,-150.0,0.00025373,2]
[389656200,1759769472394,-164.0,0.00025373,7]
[389656201,1759769472405,-150.0,0.0002538,2]
[389656202,1759769472415,-600.0,0.00025398,2]
[389656203,1759769472425,-782.54864265,0.00025428,2]
[389656204,1759769472435,-158.3037798,0.00025453,2]
[389656205,1759769472444,-2692.83,0.00025479,2]
[389656206,1759769472454,-2692.83,0.00025479,2]
[389656207,1759769472463,-2692.83,0.00025479,2]
[389656208,1759769472472,-2692.83,0.00025479,2]
[389656209,1759769472482,-2692.83,0.00025479,2]
[389656210,1759769472492,-2692.83,0.00025479,2]
[389656211,1759769472501,-2692.83,0.00025479,2]
[389656212,1759769472510,-2692.83,0.00025479,2]
[389656213,1759769472520,-2692.83,0.00025479,2]
[389656214,1759769472529,-2692.83,0.00025479,2]
[389656215,1759769472539,-2692.83,0.00025479,2]
[389656216,1759769472548,-2692.83,0.00025479,2]
[389656217,1759769472556,-2692.83,0.00025479,2]
[389656218,1759769472565,-2692.83,0.00025479,2]
[389656219,1759769472575,-2692.83,0.00025479,2]
[389656220,1759769472584,-2692.83,0.00025479,2]
[389656221,1759769472593,-2692.83,0.00025479,2]
[389656222,1759769472603,-2692.83,0.00025479,2]
[389656223,1759769472613,-2692.83,0.00025479,2]
[389656224,1759769472622,-2692.83,0.00025479,2]
[389656225,1759769472632,-2692.83,0.00025479,2]
[389656226,1759769472641,-2692.83,0.00025479,2]
[389656227,1759769472653,-2692.83,0.00025479,2]
[389656228,1759769472662,-2692.9711307,0.00025479,2]
[389656229,1759769472672,-579.0,0.00025479,2]
[389656230,1759769472685,-1815.0,0.00025479,2]
[389656231,1759769472695,-833.0,0.00025479,2]
[389656232,1759769472705,-487.0,0.00025479,2]
[389656233,1759769472715,-552.0,0.0002548,2]
[389656234,1759769472726,-7366.67,0.000255,7]
[389656235,1759769472735,-204142.74,0.000255,7]
[389656236,1759769472744,-1692.49,0.000255,2]
[389656237,1759769472754,-150.0,0.00025546,2]
[389656238,1759769472765,-3513.38279967,0.00025558,2]
[389656239,1759769472775,-3957.5,0.000256,2]
[389656240,1759769472785,-464.02793045,0.00025632,2]
[389656241,1759769472796,-164.0,0.00025646,7]
[389656242,1759769472805,-150.0,0.0002568,2]
[389656243,1759769472814,-3882.67,0.00025753,2]
[389656244,1759769472824,-974.62,0.00025753,2]
[389656245,1759769472833,-2237.86,0.00025753,2]
[389656246,1759769472843,-538.88,0.00025753,2]
[389656247,1759769472854,-500.0,0.00025753,2]
[389656248,1759769472864,-579.0,0.00025753,2]
[389656249,1759769472874,-1815.0,0.00025753,2]
[389656250,1759769472885,-833.0,0.00025753,2]
[389656251,1759769472896,-487.0,0.00025753,2]
[389656252,1759769472906,-552.0,0.00025754,2]
[389656253,1759769472917,-233.51889341,0.00025754,2]
[389656254,1759769472927,-721.5965453,0.0002577,30]
[389656255,1759769472936,-9049.74071378,0.0002577,30]
[389656256,1759769472946,-2511.357,0.00025775,2]
[389656257,1759769472955,-2543.0,0.00025775,2]
[389656258,1759769472964,-65420.24026629,0.00025777,30]
[389656259,1759769472974,-370.68887098,0.000258,3]
[389656260,1759769472983,-279.9925701,0.00025814,2]
[389656261,1759769472993,-1035.17189968,0.00025814,2]
[389656262,1759769473002,-177.89923269,0.000259,2]
[389656263,1759769473012,-198.0,0.000259,2]
[389656264,1759769473021,-1390.0,0.00025914,7]
[389656265,1759769473031,-600.0,0.00025946,2]
[389656266,1759769473040,-590.3155533,0.0002599,2]
[389656267,1759769473050,-3600.0,0.00026,6]
[389656268,1759769473060,-4445.21742546,0.00026,2]
[389656269,1759769473069,-4187.37462206,0.00026,2]
[389656270,1759769473078,-212.73523901,0.00026,2]
[389656271,1759769473088,-160.10777458,0.00026,2]
[389656272,1759769473097,-177.56489123,0.00026,10]
[389656273,1759769473107,-18501.27202487,0.00026,7]
[389656274,1759769473116,-5002.6743922,0.00026,15]
[389656275,1759769473126,-4433.65,0.00026,2]
[389656276,1759769473135,-1719.59,0.00026,7]
[389656277,1759769473144,-400.0,0.00026,2]
[389656278,1759769473155,-3603.73,0.00026,7]
[389656279,1759769473165,-23029.76,0.00026,7]
[389656280,1759769473174,-565.94111902,0.00026,2]
[389656281,1759769473185,-3994.35,0.00026,7]
[389656282,1759769473194,-457.0,0.00026,2]
[389656283,1759769473204,-1001.0,0.00026,2]
[389656284,1759769473215,-1414.57382,0.00026,2]
[389656285,1759769473225,-1692.49,0.00026,30]
[389656286,1759769473283,-3882.67,0.00026027,2]
[389656287,1759769473293,-974.62,0.00026027,2]
[389656288,1759769473304,-2237.86,0.00026027,2]
[389656289,1759769473314,-538.88,0.00026027,2]
[389656290,1759769473324,-500.0,0.00026027,2]
[389656291,1759769473334,-579.0,0.00026027,2]
[389656292,1759769473343,-1815.0,0.00026027,2]
[389656293,1759769473352,-833.0,0.00026027,2]
[389656294,1759769473362,-487.0,0.00026027,2]
[389656295,1759769473371,-552.0,0.00026028,2]
[389656296,1759769473381,-150.0,0.00026094,2]
[389656297,1759769473390,-2118.0,0.0002617,2]
[389656298,1759769473400,-2118.0,0.0002617,2]
[389656299,1759769473410,-2118.0,0.0002617,2]
[389656300,1759769473419,-2118.0,0.0002617,2]
[389656301,1759769473430,-2118.0,0.0002617,2]
[389656302,1759769473439,-2118.0,0.0002617,2]
[389656303,1759769473448,-2118.0,0.0002617,2]
[389656304,1759769473457,-2118.0,0.0002617,2]
[389656305,1759769473466,-2118.0,0.0002617,2]
[389656306,1759769473475,-2118.0,0.0002617,2]
[389656307,1759769473484,-2118.0,0.0002617,2]
[389656308,1759769473494,-2118.0,0.0002617,2]
[389656309,1759769473502,-2118.0,0.0002617,2]
[389656310,1759769473511,-2118.0,0.0002617,2]
[389656311,1759769473520,-204142.74,0.000263,7]
[389656312,1759769473530,-3882.67,0.00026301,2]
[389656313,1759769473539,-974.62,0.00026301,2]
[389656314,1759769473548,-2237.86,0.00026301,2]
[389656315,1759769473558,-538.88,0.00026301,2]
[389656316,1759769473567,-500.0,0.00026301,2]
[389656317,1759769473576,-583.63258334,0.00026301,2]
[389656318,1759769473585,-1830.28958538,0.00026301,2]
[389656319,1759769473594,-855.37713798,0.00026301,2]
[389656320,1759769473604,-494.41031914,0.00026301,2]
[389656321,1759769473612,-1230.83320316,0.00026301,2]
[389656322,1759769473621,-552.0,0.00026302,2]
[389656323,1759769473632,-242.15909246,0.00026302,2]
[389656324,1759769473641,-358.0,0.0002637,2]
[389656325,1759769473650,-358.0,0.0002637,2]
[389656326,1759769473660,-358.0,0.0002637,2]
[389656327,1759769473669,-358.0,0.0002637,2]
[389656328,1759769473679,-358.0,0.0002637,2]
[389656329,1759769473692,-358.0,0.0002637,2]
[389656330,1759769473702,-358.0,0.0002637,2]
[389656331,1759769473711,-358.0,0.0002637,2]
[389656332,1759769473721,-358.0,0.0002637,2]
[389656333,1759769473731,-358.0,0.0002637,2]
[389656334,1759769473741,-1409.0,0.00026373,2]
[389656335,1759769473750,-1409.0,0.00026373,2]
[389656336,1759769473762,-1409.0,0.00026373,2]
[389656337,1759769473771,-1409.0,0.00026373,2]
[389656338,1759769473780,-1409.0,0.00026373,2]
[389656339,1759769473790,-1409.0,0.00026373,2]
[389656340,1759769473799,-1409.0,0.00026373,2]
[389656341,1759769473808,-1409.0,0.00026373,2]
[389656342,1759769473817,-1409.0,0.00026373,2]
[389656343,1759769473827,-1409.0,0.00026373,2]
[389656344,1759769473835,-1409.0,0.00026373,2]
[389656345,1759769473845,-1409.0,0.00026373,2]
[389656346,1759769473854,-361.0,0.0002638,2]
[389656347,1759769473864,-361.0,0.0002638,2]
[389656348,1759769473872,-361.0,0.0002638,2]
[389656349,1759769473882,-361.0,0.0002638,2]
[389656350,1759769473891,-361.0,0.0002638,2]
[389656351,1759769473901,-361.0,0.0002638,2]
[389656352,1759769473910,-361.0,0.0002638,2]
[389656353,1759769473920,-361.0,0.0002638,2]
[389656354,1759769473929,-361.0,0.0002638,2]
[389656355,1759769473938,-361.0,0.0002638,2]
[389656356,1759769473948,-1323.0,0.00026383,2]
[389656357,1759769473957,-1323.0,0.00026383,2]
[389656358,1759769473966,-1323.0,0.00026383,2]
[389656359,1759769473976,-1323.0,0.00026383,2]
[389656360,1759769473985,-1323.0,0.00026383,2]
[389656361,1759769473994,-1323.0,0.00026383,2]
[389656362,1759769474003,-1323.0,0.00026383,2]
[389656363,1759769474012,-1323.0,0.00026383,2]
[389656364,1759769474020,-1323.0,0.00026383,2]
[389656365,1759769474031,-1323.0,0.00026383,2]
[389656366,1759769474041,-363.0,0.0002639,2]
[389656367,1759769474051,-363.0,0.0002639,2]
[389656368,1759769474061,-363.0,0.0002639,2]
[389656369,1759769474070,-363.0,0.0002639,2]
[389656370,1759769474079,-363.0,0.0002639,2]
[389656371,1759769474089,-363.0,0.0002639,2]
[389656372,1759769474098,-363.0,0.0002639,2]
[389656373,1759769474107,-363.0,0.0002639,2]
[389656374,1759769474116,-363.0,0.0002639,2]
[389656375,1759769474125,-363.0,0.0002639,2]
[389656376,1759769474134,-158.3037798,0.00026397,2]
[389656377,1759769474143,-27005.24651664,0.000264,2]
[389656378,1759769474153,-2795.24462421,0.000264,14]
[389656379,1759769474163,-600.0,0.00026494,2]
[389656380,1759769474173,-3957.5,0.000265,2]
[389656381,1759769474182,-1692.49,0.000265,30]
[389656382,1759769474191,-1000.0,0.00026515,4]
[389656383,1759769474200,-3882.67,0.00026575,2]
[389656384,1759769474210,-974.62,0.00026575,2]
[389656385,1759769474219,-2237.86,0.00026575,2]
[389656386,1759769474228,-538.88,0.00026575,2]
[389656387,1759769474238,-500.0,0.00026575,2]
[389656388,1759769474247,-552.0,0.00026576,2]
[389656389,1759769474256,-163.0,0.00026625,7]
[389656390,1759769474265,-164.0,0.00026641,7]
[389656391,1759769474274,-166.0,0.00026642,7]
[389656392,1759769474283,-150.0,0.00026642,2]
[389656393,1759769474292,-7202.74,0.00026777,30]
[389656394,1759769474302,-7000.0,0.00026778,20]
[389656395,1759769474311,-3882.67,0.00026849,2]
[389656396,1759769474321,-974.62,0.00026849,2]
[389656397,1759769474330,-2237.86,0.00026849,2]
[389656398,1759769474340,-538.88,0.00026849,2]
[389656399,1759769474349,-500.0,0.00026849,2]
[389656400,1759769474359,-552.0,0.0002685,2]
[389656401,1759769474368,-154.60202845,0.0002685,2]
[389656402,1759769474377,-251.11897888,0.0002685,2]
[389656403,1759769474386,-1390.0,0.00026892,7]